fUST/lending_fUST_20240117
["ID","MTS","AMOUNT","RATE_DAILY","PERIOD"]
[311869043,1705480245368,-500.0,0.00022191,2]
[311869044,1705480245378,-500.0,0.00022191,2]
[311869045,1705480245387,-209.73633126,0.00022191,2]
[311869046,1705480245397,-575.28227044,0.00022191,2]
[311869047,1705480245407,-500.0,0.00022191,2]
[311869048,1705480245416,-500.0,0.00022191,2]
[311869049,1705480245426,-500.0,0.00022191,2]
[311869050,1705480245436,-500.0,0.00022191,2]
[311869051,1705480245447,-500.0,0.00022191,2]
[311869052,1705480245457,-500.0,0.00022191,2]
[311869053,1705480245467,-500.0,0.00022191,2]
[311869054,1705480245477,-500.0,0.00022191,2]
[311869055,1705480245488,-814.01,0.00022191,2]
[311869056,1705480245498,-500.0,0.00022191,2]
[311869057,1705480245508,-500.0,0.00022191,2]
[311869058,1705480245519,-535.27,0.00022191,2]
[311869059,1705480245528,-500.0,0.00022191,2]
[311869060,1705480245537,-849.45,0.00022191,2]
[311869061,1705480245546,-352.86531684,0.00022191,2]
[311869062,1705480245556,-6081.97,0.00022191,2]
[311869063,1705480245565,-500.0,0.00022191,2]
[311869064,1705480245575,-500.0,0.00022191,2]
[311869065,1705480245584,-500.0,0.00022191,2]
[311869066,1705480245594,-2684.37,0.00022191,2]
[311869067,1705480245604,-500.0,0.00022191,2]
[311869068,1705480245614,-2221.1,0.00022191,2]
[311869069,1705480245623,-30826.16,0.00022191,2]
[311869070,1705480245632,-500.0,0.00022191,2]
[311869071,1705480245642,-500.0,0.00022191,2]
[311869072,1705480245651,-500.0,0.00022191,2]
[311869073,1705480245661,-500.0,0.00022191,2]
[311869074,1705480245670,-15920.41,0.00022191,2]
[311869075,1705480245680,-500.0,0.00022191,2]
[311869076,1705480245689,-886.43,0.00022191,2]
[311869077,1705480245699,-500.0,0.00022191,2]
[311869078,1705480245708,-500.0,0.00022191,2]
[311869079,1705480245719,-500.0,0.00022191,2]
[311869080,1705480245728,-500.0,0.00022191,2]
[311869081,1705480245737,-500.0,0.00022191,2]
[311869082,1705480245746,-1660.1,0.00022191,2]
[311869083,1705480245755,-2705.18,0.00022191,2]
[311869084,1705480245765,-500.0,0.00022191,2]
[311869085,1705480245775,-500.0,0.00022191,2]
[311869086,1705480245785,-500.0,0.00022191,2]
[311869087,1705480245794,-500.0,0.00022191,2]
[311869088,1705480245804,-909.26,0.00022191,2]
[311869089,1705480245814,-500.0,0.00022191,2]
[311869090,1705480245824,-500.0,0.00022191,2]
[311869091,1705480245834,-500.0,0.00022191,2]
[311869092,1705480245843,-500.0,0.00022191,2]
[311869093,1705480245852,-883.44,0.00022191,2]
[311869094,1705480245862,-500.0,0.00022191,2]
[311869095,1705480245872,-1746.61,0.00022191,2]
[311869096,1705480245882,-429.95876673,0.00022191,2]
[311869097,1705480245892,-7111.46,0.00022191,2]
[311869098,1705480245902,-500.0,0.00022191,2]
[311869099,1705480245911,-388.70818294,0.00022191,2]
[311869100,1705480245922,-540.7180897,0.00022191,2]
[311869101,1705480245932,-1726.87,0.00022191,2]
[311869102,1705480245941,-1414.5,0.00022191,2]
[311869103,1705480245950,-7486.01,0.00022191,2]
[311869104,1705480245960,-500.0,0.00022191,2]
[311869105,1705480245970,-500.0,0.00022191,2]
[311869106,1705480245979,-500.0,0.00022191,2]
[311869107,1705480245988,-500.0,0.00022191,2]
[311869108,1705480245998,-500.0,0.00022191,2]
[311869109,1705480246007,-547.15371215,0.00022191,2]
[311869111,1705480246017,-551.64,0.00022191,2]
[311869113,1705480246026,-8267.95,0.00022191,2]
[311869116,1705480246035,-500.0,0.00022191,2]
[311869117,1705480246045,-515.61152056,0.00022191,2]
[311869119,1705480246054,-500.0,0.00022191,2]
[311869121,1705480246064,-1760.56,0.00022191,2]
[311869124,1705480246074,-500.0,0.00022191,2]
[311869126,1705480246083,-168.86592678,0.00022191,2]
[311869128,1705480246093,-1449.0,0.00022191,2]
[311869130,1705480246102,-505.14162514,0.00022191,2]
[311869138,1705480246169,-1237.09,0.00022191,2]
[311869139,1705480246179,-3108.47,0.00022191,2]
[311869142,1705480246189,-500.0,0.00022191,2]
[311869144,1705480246199,-793.49,0.00022191,2]
[311869146,1705480246209,-500.0,0.00022191,2]
[311869148,1705480246219,-500.0,0.00022191,2]
[311869150,1705480246229,-500.0,0.00022191,2]
[311869152,1705480246238,-500.0,0.00022327,2]
[311869153,1705480246247,-500.0,0.00022327,2]
[311869156,1705480246256,-151.0,0.00022328,2]
[311869157,1705480246266,-302.473402,0.00022328,2]
[311869160,1705480246275,-302.473402,0.00022328,2]
[311869162,1705480246285,-525.750502,0.00022328,2]
[311869164,1705480246294,-525.750502,0.00022328,2]
[311869166,1705480246303,-155.0,0.00022328,2]
[311869168,1705480246312,-500.0,0.00022328,2]
[311869170,1705480246322,-500.0,0.00022328,2]
[311869171,1705480246330,-500.0,0.00022328,2]
[311869173,1705480246340,-500.0,0.00022328,2]
[311869175,1705480246349,-530.20222299,0.00022328,2]
[311869178,1705480246359,-804.98,0.00022328,2]
[311869180,1705480246368,-500.0,0.00022328,2]
[311869181,1705480246377,-500.0,0.00022328,2]
[311869184,1705480246387,-550.0,0.00022328,2]
[311869185,1705480246396,-500.0,0.00022328,2]
[311869188,1705480246406,-500.0,0.00022328,2]
[311869189,1705480246415,-500.0,0.00022328,2]
[311869192,1705480246424,-803.05,0.00022328,2]
[311869194,1705480246433,-500.0,0.00022328,2]
[311869195,1705480246442,-611.52886073,0.00022328,2]
[311869198,1705480246452,-614.85,0.00022328,2]
[311869199,1705480246461,-500.0,0.00022328,2]
[311869202,1705480246471,-500.0,0.00022328,2]
[311869204,1705480246481,-500.0,0.00022328,2]
[311869206,1705480246491,-500.0,0.00022328,2]
[311869207,1705480246500,-465.15047462,0.00022328,2]
[311869210,1705480246510,-500.0,0.00022328,2]
[311869211,1705480246524,-500.0,0.00022328,2]
[311869214,1705480246533,-500.0,0.00022328,2]
[311869215,1705480246542,-500.0,0.00022328,2]
[311869217,1705480246552,-500.0,0.00022328,2]
[311869219,1705480246560,-500.0,0.00022328,2]
[311869221,1705480246570,-500.0,0.00022328,2]
[311869223,1705480246579,-500.0,0.00022328,2]
[311869225,1705480246589,-500.0,0.00022328,2]
[311869227,1705480246599,-500.0,0.00022328,2]
[311869229,1705480246608,-717.37,0.00022328,2]
[311869232,1705480246618,-500.0,0.00022328,2]
[311869233,1705480246627,-500.0,0.00022328,2]
[311869235,1705480246636,-506.9362878,0.00022328,2]
[311869237,1705480246646,-677.11,0.00022328,2]
[311869239,1705480246655,-500.0,0.00022328,2]
[311869241,1705480246664,-500.0,0.00022328,2]
[311869243,1705480246674,-1479.67,0.00022328,2]
[311869245,1705480246684,-500.0,0.00022328,2]
[311869247,1705480246693,-500.0,0.00022328,2]
[311869249,1705480246702,-500.0,0.00022328,2]
[311869251,1705480246713,-500.0,0.00022328,2]
[311869253,1705480246723,-383.91001896,0.00022328,2]
[311869255,1705480246732,-536.29,0.00022328,2]
[311869258,1705480246741,-322.14233015,0.00022328,2]
[311869260,1705480246750,-851.79,0.00022328,2]
[311869262,1705480246760,-500.0,0.00022328,2]
[311869264,1705480246769,-1064.26,0.00022328,2]
[311869266,1705480246778,-500.0,0.00022328,2]
[311869268,1705480246787,-500.0,0.00022328,2]
[311869269,1705480246796,-500.0,0.00022328,2]
[311869271,1705480246805,-520.21,0.00022328,2]
[311869273,1705480246814,-500.0,0.00022328,2]
[311869275,1705480246823,-500.0,0.00022328,2]
[311869277,1705480246832,-500.0,0.00022328,2]
[311869280,1705480246843,-327.43482098,0.00022328,2]
[311869282,1705480246852,-500.0,0.00022328,2]
[311869283,1705480246862,-506.80923371,0.00022328,2]
[311869286,1705480246872,-375.08228626,0.00022328,2]
[311869287,1705480246882,-505.28582934,0.00022328,2]
[311869289,1705480246893,-1179.89,0.00022328,2]
[311869292,1705480246902,-500.0,0.00022328,2]
[311869293,1705480246911,-500.0,0.00022328,2]
[311869295,1705480246920,-519.01649096,0.00022328,2]
[311869297,1705480246930,-500.0,0.00022328,2]
[311869299,1705480246939,-385.46353208,0.00022328,2]
[311869301,1705480246948,-500.0,0.00022328,2]
[311869303,1705480246958,-723.66,0.00022328,2]
[311869305,1705480246967,-578.88,0.00022328,2]
[311869307,1705480246976,-500.0,0.00022328,2]
[311869309,1705480246986,-2594.25,0.00022328,2]
[311869312,1705480246996,-500.0,0.00022328,2]
[311869314,1705480247007,-500.0,0.00022328,2]
[311869315,1705480247017,-3615.95,0.00022328,2]
[311869318,1705480247029,-719.4,0.00022328,2]
[311869319,1705480247038,-531.42,0.00022328,2]
[311869321,1705480247047,-505.34,0.00022328,2]
[311869323,1705480247057,-610.73,0.00022328,2]
[311869325,1705480247066,-1753.7,0.00022328,2]
[311869327,1705480247075,-500.0,0.00022328,2]
[311869329,1705480247084,-15577.79,0.00022328,2]
[311869331,1705480247093,-500.0,0.00022328,2]
[311869333,1705480247103,-1729.88,0.00022328,2]
[311869335,1705480247112,-500.0,0.00022328,2]
[311869337,1705480247122,-2969.39,0.00022328,2]
[311869339,1705480247132,-500.0,0.00022328,2]
[311869341,1705480247142,-305.08682904,0.00022328,2]
[311869343,1705480247151,-500.0,0.00022328,2]
[311869345,1705480247161,-500.0,0.00022328,2]
[311869347,1705480247170,-500.0,0.00022328,2]
[311869349,1705480247180,-500.0,0.00022328,2]
[311869352,1705480247189,-500.0,0.00022328,2]
[311869353,1705480247198,-500.0,0.00022328,2]
[311869355,1705480247208,-500.0,0.00022328,2]
[311869357,1705480247218,-500.0,0.00022328,2]
[311869359,1705480247228,-500.0,0.00022328,2]
[311869361,1705480247237,-814.01,0.00022328,2]
[311869363,1705480247246,-500.0,0.00022328,2]
[311869365,1705480247255,-500.0,0.00022328,2]
[311869367,1705480247264,-535.27,0.00022328,2]
[311869369,1705480247274,-500.0,0.00022328,2]
[311869377,1705480247283,-849.45,0.00022328,2]
[311869379,1705480247346,-6081.97,0.00022328,2]
[311869381,1705480247356,-500.0,0.00022328,2]
[311869383,1705480247364,-500.0,0.00022328,2]
[311869385,1705480247374,-500.0,0.00022328,2]
[311869387,1705480247382,-2684.37,0.00022328,2]
[311869389,1705480247391,-500.0,0.00022328,2]
[311869391,1705480247400,-2221.1,0.00022328,2]
[311869393,1705480247409,-30826.16,0.00022328,2]
[311869395,1705480247418,-535.84483329,0.00022328,2]
[311869397,1705480247427,-500.0,0.00022328,2]
[311869399,1705480247436,-500.0,0.00022328,2]
[311869401,1705480247445,-15920.41,0.00022328,2]
[311869403,1705480247454,-608.64434299,0.00022328,2]
[311869405,1705480247463,-886.43,0.00022328,2]
[311869407,1705480247473,-500.0,0.00022328,2]
[311869409,1705480247482,-500.0,0.00022328,2]
[311869411,1705480247491,-629.84713767,0.00022328,2]
[311869413,1705480247500,-586.54466235,0.00022328,2]
[311869415,1705480247509,-500.0,0.00022328,2]
[311869417,1705480247520,-1660.1,0.00022328,2]
[311869419,1705480247529,-2705.18,0.00022328,2]
[311869421,1705480247538,-500.0,0.00022328,2]
[311869423,1705480247546,-500.0,0.00022328,2]
[311869425,1705480247556,-500.0,0.00022328,2]
[311869427,1705480247565,-500.0,0.00022328,2]
[311869429,1705480247575,-909.26,0.00022328,2]
[311869431,1705480247584,-500.0,0.00022328,2]
[311869433,1705480247594,-507.03929807,0.00022328,2]
[311869435,1705480247605,-500.0,0.00022328,2]
[311869437,1705480247615,-500.0,0.00022328,2]
[311869439,1705480247624,-883.44,0.00022328,2]
[311869440,1705480247633,-500.0,0.00022328,2]
[311869441,1705480247642,-1746.61,0.00022328,2]
[311869442,1705480247652,-7111.46,0.00022328,2]
[311869443,1705480247661,-222.61017779,0.00022328,2]
[311869444,1705480247670,-1726.87,0.00022328,2]
[311869445,1705480247679,-1414.5,0.00022328,2]
[311869446,1705480247687,-7486.01,0.00022328,2]
[311869447,1705480247697,-500.0,0.00022328,2]
[311869448,1705480247706,-500.0,0.00022328,2]
[311869449,1705480247715,-500.0,0.00022328,2]
[311869450,1705480247724,-551.64,0.00022328,2]
[311869451,1705480247734,-8267.95,0.00022328,2]
[311869452,1705480247742,-500.0,0.00022328,2]
[311869453,1705480247751,-500.0,0.00022328,2]
[311869454,1705480247761,-1760.56,0.00022328,2]
[311869455,1705480247770,-500.0,0.00022328,2]
[311869456,1705480247778,-1449.0,0.00022328,2]
[311869457,1705480247787,-1237.09,0.00022328,2]
[311869458,1705480247796,-3108.47,0.00022328,2]
[311869459,1705480247805,-793.49,0.00022328,2]
[311869460,1705480247814,-500.0,0.00022328,2]
[311869461,1705480247823,-500.0,0.00022328,2]
[311869462,1705480247832,-500.0,0.00022328,2]
[311869463,1705480247841,-166.666666,0.00022431,2]
[311869464,1705480247850,-302.473402,0.00022465,2]
[311869465,1705480247859,-302.473402,0.00022465,2]
[311869466,1705480247868,-525.750502,0.00022465,2]
[311869468,1705480247877,-525.750502,0.00022465,2]
[311869470,1705480247886,-500.0,0.00022465,2]
[311869472,1705480247896,-500.0,0.00022465,2]
[311869475,1705480247905,-804.98,0.00022465,2]
[311869477,1705480247915,-500.0,0.00022465,2]
[311869479,1705480247924,-500.0,0.00022465,2]
[311869481,1705480247933,-500.0,0.00022465,2]
[311869483,1705480247942,-500.0,0.00022465,2]
[311869485,1705480247951,-500.0,0.00022465,2]
[311869487,1705480247961,-803.05,0.00022465,2]
[311869489,1705480247970,-505.04589673,0.00022465,2]
[311869491,1705480247979,-614.85,0.00022465,2]
[311869492,1705480247988,-500.0,0.00022465,2]
[311869495,1705480247997,-500.0,0.00022465,2]
[311869497,1705480248006,-500.0,0.00022465,2]
[311869499,1705480248015,-500.0,0.00022465,2]
[311869501,1705480248025,-500.0,0.00022465,2]
[311869502,1705480248034,-500.0,0.00022465,2]
[311869504,1705480248042,-500.0,0.00022465,2]
[311869506,1705480248051,-500.0,0.00022465,2]
[311869508,1705480248060,-500.0,0.00022465,2]
[311869510,1705480248069,-500.0,0.00022465,2]
[311869512,1705480248078,-500.0,0.00022465,2]
[311869514,1705480248088,-500.0,0.00022465,2]
[311869516,1705480248097,-503.13967558,0.00022465,2]
[311869518,1705480248106,-717.37,0.00022465,2]
[311869520,1705480248115,-500.0,0.00022465,2]
[311869523,1705480248124,-500.0,0.00022465,2]
[311869524,1705480248134,-677.11,0.00022465,2]
[311869526,1705480248143,-500.0,0.00022465,2]
[311869528,1705480248151,-500.0,0.00022465,2]
[311869530,1705480248160,-1479.67,0.00022465,2]
[311869532,1705480248169,-500.0,0.00022465,2]
[311869534,1705480248178,-500.0,0.00022465,2]
[311869536,1705480248187,-500.0,0.00022465,2]
[311869538,1705480248196,-500.0,0.00022465,2]
[311869540,1705480248205,-536.29,0.00022465,2]
[311869542,1705480248214,-851.79,0.00022465,2]
[311869544,1705480248224,-506.04587951,0.00022465,2]
[311869546,1705480248233,-1064.26,0.00022465,2]
[311869548,1705480248242,-500.0,0.00022465,2]
[311869550,1705480248251,-500.0,0.00022465,2]
[311869553,1705480248260,-520.21,0.00022465,2]
[311869554,1705480248270,-503.30284957,0.00022465,2]
[311869556,1705480248279,-500.0,0.00022465,2]
[311869558,1705480248288,-500.0,0.00022465,2]
[311869560,1705480248297,-500.0,0.00022465,2]
[311869563,1705480248306,-1179.89,0.00022465,2]
[311869564,1705480248316,-500.0,0.00022465,2]
[311869566,1705480248325,-500.0,0.00022465,2]
[311869574,1705480248387,-500.0,0.00022465,2]
[311869576,1705480248396,-615.47939903,0.00022465,2]
[311869578,1705480248405,-723.66,0.00022465,2]
[311869580,1705480248413,-578.88,0.00022465,2]
[311869582,1705480248422,-500.0,0.00022465,2]
[311869584,1705480248432,-2594.25,0.00022465,2]
[311869586,1705480248441,-302.98557895,0.00022465,2]
[311869588,1705480248451,-3615.95,0.00022465,2]
[311869590,1705480248460,-719.4,0.00022465,2]
[311869592,1705480248470,-531.42,0.00022465,2]
[311869594,1705480248479,-505.34,0.00022465,2]
[311869596,1705480248488,-610.73,0.00022465,2]
[311869598,1705480248496,-1753.7,0.00022465,2]
[311869600,1705480248506,-500.0,0.00022465,2]
[311869602,1705480248518,-15577.79,0.00022465,2]
[311869605,1705480248527,-500.0,0.00022465,2]
[311869606,1705480248536,-1729.88,0.00022465,2]
[311869608,1705480248545,-500.0,0.00022465,2]
[311869611,1705480248555,-2969.39,0.00022465,2]
[311869612,1705480248563,-500.0,0.00022465,2]
[311869615,1705480248573,-500.0,0.00022465,2]
[311869617,1705480248582,-500.0,0.00022465,2]
[311869619,1705480248591,-500.0,0.00022465,2]
[311869621,1705480248600,-500.0,0.00022465,2]
[311869623,1705480248611,-500.0,0.00022465,2]
[311869625,1705480248620,-500.0,0.00022465,2]
[311869626,1705480248629,-500.0,0.00022465,2]
[311869629,1705480248639,-344.85757155,0.00022465,2]
[311869631,1705480248647,-500.0,0.00022465,2]
[311869632,1705480248657,-814.01,0.00022465,2]
[311869635,1705480248666,-500.0,0.00022465,2]
[311869637,1705480248676,-500.0,0.00022465,2]
[311869639,1705480248685,-535.27,0.00022465,2]
[311869640,1705480248694,-500.0,0.00022465,2]
[311869642,1705480248702,-849.45,0.00022465,2]
[311869644,1705480248711,-6081.97,0.00022465,2]
[311869646,1705480248721,-500.0,0.00022465,2]
[311869648,1705480248730,-500.0,0.00022465,2]
[311869650,1705480248739,-500.0,0.00022465,2]
[311869652,1705480248748,-2684.37,0.00022465,2]
[311869654,1705480248757,-500.0,0.00022465,2]
[311869657,1705480248766,-2221.1,0.00022465,2]
[311869658,1705480248775,-30826.16,0.00022465,2]
[311869661,1705480248785,-500.0,0.00022465,2]
[311869662,1705480248794,-500.0,0.00022465,2]
[311869664,1705480248803,-15920.41,0.00022465,2]
[311869666,1705480248813,-886.43,0.00022465,2]
[311869669,1705480248822,-500.0,0.00022465,2]
[311869670,1705480248831,-500.0,0.00022465,2]
[311869673,1705480248840,-500.0,0.00022465,2]
[311869675,1705480248850,-1660.1,0.00022465,2]
[311869677,1705480248860,-2705.18,0.00022465,2]
[311869679,1705480248869,-500.0,0.00022465,2]
[311869681,1705480248878,-182.9364757,0.00022465,2]
[311869683,1705480248887,-500.0,0.00022465,2]
[311869685,1705480248897,-500.0,0.00022465,2]
[311869687,1705480248906,-500.0,0.00022465,2]
[311869689,1705480248915,-500.0,0.00022465,2]
[311869691,1705480248923,-500.0,0.00022465,2]
[311869692,1705480248932,-883.44,0.00022465,2]
[311869694,1705480248941,-506.36136308,0.00022465,2]
[311869696,1705480248950,-1746.61,0.00022465,2]
[311869698,1705480248959,-7111.46,0.00022465,2]
[311869700,1705480248969,-1726.87,0.00022465,2]
[311869703,1705480248978,-1414.5,0.00022465,2]
[311869704,1705480248988,-7486.01,0.00022465,2]
[311869706,1705480248997,-500.0,0.00022465,2]
[311869708,1705480249006,-500.0,0.00022465,2]
[311869711,1705480249015,-500.0,0.00022465,2]
[311869713,1705480249025,-551.64,0.00022465,2]
[311869715,1705480249033,-8267.95,0.00022465,2]
[311869716,1705480249042,-346.62671906,0.00022465,2]
[311869719,1705480249051,-500.0,0.00022465,2]
[311869720,1705480249060,-1760.56,0.00022465,2]
[311869723,1705480249069,-500.0,0.00022465,2]
[311869724,1705480249079,-1449.0,0.00022465,2]
[311869726,1705480249088,-1237.09,0.00022465,2]
[311869728,1705480249097,-3108.47,0.00022465,2]
[311869729,1705480249105,-793.49,0.00022465,2]
[311869730,1705480249114,-234.02972932,0.00022465,2]
[311869731,1705480249123,-444.85689834,0.00022465,2]
[311869732,1705480249132,-500.0,0.00022465,2]
[311869733,1705480249141,-168.54285343,0.000225,2]
[311869734,1705480249150,-1825.67858503,0.000226,3]
[311869736,1705480249159,-151.0,0.00022602,2]
[311869738,1705480249168,-302.473402,0.00022602,2]
[311869740,1705480249177,-302.473402,0.00022602,2]
[311869741,1705480249186,-525.750502,0.00022602,2]
[311869743,1705480249195,-525.750502,0.00022602,2]
[311869745,1705480249204,-500.0,0.00022602,2]
[311869747,1705480249212,-500.0,0.00022602,2]
[311869749,1705480249223,-804.98,0.00022602,2]
[311869751,1705480249232,-500.0,0.00022602,2]
[311869753,1705480249241,-500.0,0.00022602,2]
[311869754,1705480249250,-500.0,0.00022602,2]
[311869755,1705480249259,-500.0,0.00022602,2]
[311869756,1705480249268,-500.0,0.00022602,2]
[311869757,1705480249278,-803.05,0.00022602,2]
[311869758,1705480249288,-614.85,0.00022602,2]
[311869759,1705480249298,-500.0,0.00022602,2]
[311869760,1705480249358,-500.0,0.00022602,2]
[311869761,1705480249369,-500.0,0.00022602,2]
[311869762,1705480249378,-500.0,0.00022602,2]
[311869763,1705480249387,-500.0,0.00022602,2]
[311869764,1705480249397,-500.0,0.00022602,2]
[311869765,1705480249406,-500.0,0.00022602,2]
[311869766,1705480249415,-500.0,0.00022602,2]
[311869767,1705480249424,-224.20797195,0.00022602,2]
[311869768,1705480249433,-500.0,0.00022602,2]
[311869769,1705480249442,-500.0,0.00022602,2]
[311869770,1705480249451,-717.37,0.00022602,2]
[311869771,1705480249460,-367.54682919,0.00022602,2]
[311869772,1705480249576,-132.45317081,0.00022602,2]
[311869773,1705480249585,-500.0,0.00022602,2]
[311869774,1705480249596,-677.11,0.00022602,2]
[311869775,1705480249605,-500.0,0.00022602,2]
[311869776,1705480249614,-1479.67,0.00022602,2]
[311869777,1705480249624,-646.32186224,0.00022602,2]
[311869778,1705480249633,-500.0,0.00022602,2]
[311869779,1705480249642,-500.0,0.00022602,2]
[311869780,1705480249651,-500.0,0.00022602,2]
[311869781,1705480249660,-536.29,0.00022602,2]
[311869782,1705480249669,-650.27561236,0.00022602,2]
[311869783,1705480249900,-201.51438764,0.00022602,2]
[311869784,1705480249909,-1064.26,0.00022602,2]
[311869785,1705480249918,-500.0,0.00022602,2]
[311869786,1705480249927,-500.0,0.00022602,2]
[311869787,1705480249937,-520.21,0.00022602,2]
[311869788,1705480249946,-500.0,0.00022602,2]
[311869789,1705480249955,-256.1444205,0.00022602,2]
[311869790,1705480249965,-500.0,0.00022602,2]
[311869791,1705480249975,-1179.89,0.00022602,2]
[311869792,1705480249984,-500.0,0.00022602,2]
[311869793,1705480249994,-208.55191773,0.00022602,2]
[311869794,1705480250162,-500.0,0.00021917,2]
[311869795,1705480250173,-500.86771326,0.00022054,2]
[311869796,1705480250182,-291.44808227,0.00022602,2]
[311869797,1705480250191,-723.66,0.00022602,2]
[311869798,1705480250200,-578.88,0.00022602,2]
[311869799,1705480250210,-500.0,0.00022602,2]
[311869800,1705480250219,-2594.25,0.00022602,2]
[311869801,1705480250229,-3615.95,0.00022602,2]
[311869802,1705480250238,-322.19559995,0.00022602,2]
[311869803,1705480250360,-713.71,0.00021917,2]
[311869804,1705480250370,-3482.04693402,0.00021954,2]
[311869805,1705480250448,191.18174268,0.00017937,2]
[311870486,1705480795647,-1000.0,0.00031,31]
[311870487,1705480795683,-1000.0,0.00033,33]
[311870488,1705480795710,-155.42090687,0.000345,120]
[311870489,1705480795737,-1000.0,0.00035,35]
[311870490,1705480795763,-1502.690244,0.00035616,120]
[311870491,1705480795788,-316.0,0.00036,120]
[311870492,1705480795814,-1000.0,0.00037,37]
[311870493,1705480795842,-1000.0,0.00039,39]
[311870494,1705480795869,-16290.26613315,0.0004,60]
[311870495,1705480795894,-3623.0,0.00040164,45]
[311870496,1705480795918,-1000.0,0.00041,41]
[311870497,1705480795945,-150.0,0.000415,120]
[311870498,1705480795970,-1502.690244,0.00041553,120]
[311870499,1705480795994,-14999.85999901,0.00042,120]
[311870500,1705480796023,-5623.0,0.00042219,60]
[311870501,1705480796046,-80345.82383813,0.00042704,90]
[311870502,1705480796071,-512.0,0.00043,120]
[311870503,1705480796094,-539.6508477,0.00043,120]
[311870504,1705480796121,-286.9547237,0.00043,120]
[311870505,1705480796145,-1000.0,0.00043,43]
[311870506,1705480796174,-300.0,0.000446,120]
[311870507,1705480796200,-339.51279872,0.000449,120]
[311870508,1705480796224,-382.0,0.00044908,90]
[311870509,1705480796250,-155.0,0.00045,120]
[311870510,1705480796276,-635.87503476,0.00045,120]
[311870511,1705480796299,-1597.36702157,0.00045,120]
[311870512,1705480796323,-1000.0,0.00045,120]
[311870513,1705480796347,-265.26139135,0.00045,120]
[311870514,1705480796370,-432.9497498,0.00045,120]
[311870515,1705480796393,-395.08040086,0.00045,120]
[311870516,1705480796417,-478.05836863,0.00045,120]
[311870517,1705480796440,-500.0,0.00045,120]
[311870518,1705480796465,-500.0,0.00045,120]
[311870519,1705480796487,-500.0,0.00045,120]
[311870520,1705480796509,-500.0,0.00045,120]
[311870521,1705480796532,-206.44200709,0.00045,120]
[311870522,1705480796554,-301.27195423,0.00045,120]
[311870523,1705480796578,-500.0,0.00045,120]
[311870524,1705480796600,-513.76193517,0.00045,120]
[311870525,1705480796622,-500.0,0.00045,120]
[311870526,1705480796645,-500.0,0.00045,120]
[311870527,1705480796669,-500.0,0.00045,120]
[311870528,1705480796695,-500.0,0.00045,120]
[311870529,1705480796719,-500.0,0.00045,120]
[311870530,1705480796743,-500.0,0.00045,120]
[311870531,1705480796864,-500.0,0.00045,120]
[311870532,1705480796889,-500.0,0.00045,120]
[311870533,1705480796913,-500.0,0.00045,120]
[311870534,1705480796938,-379.87604144,0.00045,120]
[311870535,1705480796962,-500.0,0.00045,120]
[311870536,1705480796986,-487.40125968,0.00045,120]